fUST/lending_fUST_20240221
["ID","MTS","AMOUNT","RATE_DAILY","PERIOD"]
[314634694,1708481439458,-500.0,0.0002014,2]
[314634695,1708481439468,-213.63256075,0.0002014,2]
[314634696,1708481439477,-500.0,0.0002014,2]
[314634697,1708481439486,-3692.09,0.0002014,2]
[314634698,1708481439495,-500.0,0.0002014,2]
[314634699,1708481439505,-500.0,0.0002014,2]
[314634700,1708481439515,-521.0039513,0.0002014,2]
[314634701,1708481439524,-500.0,0.0002014,2]
[314634702,1708481439534,-500.0,0.0002014,2]
[314634703,1708481439543,-500.0,0.0002014,2]
[314634704,1708481439552,-500.0,0.0002014,2]
[314634705,1708481439561,-500.0,0.0002014,2]
[314634706,1708481439571,-3354.28,0.0002014,2]
[314634707,1708481439580,-500.0,0.0002014,2]
[314634708,1708481439590,-400.32969916,0.0002014,2]
[314634709,1708481439601,-582.34,0.0002014,2]
[314634710,1708481439610,-2788.87,0.0002014,2]
[314634711,1708481439619,-500.0,0.0002014,2]
[314634712,1708481439628,-1574.48,0.0002014,2]
[314634713,1708481439637,-500.0,0.0002014,2]
[314634714,1708481439646,-4793.59,0.0002014,2]
[314634715,1708481439655,-500.0,0.0002014,2]
[314634716,1708481439664,-500.0,0.0002014,2]
[314634717,1708481439673,-500.0,0.0002014,2]
[314634718,1708481439683,-500.23506128,0.0002014,2]
[314634719,1708481439692,-500.0,0.0002014,2]
[314634720,1708481439701,-500.0,0.0002014,2]
[314634721,1708481439710,-500.0,0.0002014,2]
[314634722,1708481439720,-500.0,0.0002014,2]
[314634723,1708481439730,-500.0,0.0002014,2]
[314634724,1708481439743,-500.0,0.0002014,2]
[314634725,1708481439753,-871.35,0.0002014,2]
[314634726,1708481439762,-500.0,0.0002014,2]
[314634727,1708481439771,-583.45186676,0.0002014,2]
[314634728,1708481439780,-500.0,0.0002014,2]
[314634729,1708481439790,-615.87,0.0002014,2]
[314634730,1708481439799,-500.0,0.0002014,2]
[314634731,1708481439808,-687.79,0.0002014,2]
[314634732,1708481439818,-500.0,0.0002014,2]
[314634733,1708481439827,-500.0,0.0002014,2]
[314634734,1708481439837,-500.0,0.0002014,2]
[314634735,1708481439848,-628.59224466,0.0002014,2]
[314634736,1708481439859,-500.0,0.0002014,2]
[314634737,1708481439868,-500.0,0.0002014,2]
[314634738,1708481439879,-500.0,0.0002014,2]
[314634739,1708481439888,-1000.0,0.0002014,2]
[314634740,1708481439897,-500.0,0.0002014,2]
[314634741,1708481439907,-500.0,0.0002014,2]
[314634742,1708481439916,-500.0,0.0002014,2]
[314634743,1708481439926,-500.0,0.0002014,2]
[314634744,1708481439935,-500.0,0.0002014,2]
[314634745,1708481439944,-500.0,0.0002014,2]
[314634746,1708481439954,-500.0,0.0002014,2]
[314634747,1708481439962,-264937.02523993,0.00020141,2]
[314634748,1708481439972,-219.06936996,0.0002023,2]
[314634749,1708481439982,-170569.66050576,0.00020232,2]
[314634750,1708481439991,-395.16399054,0.00020238,2]
[314634751,1708481440000,-3086.26,0.00020238,2]
[314634752,1708481440009,-14811.64,0.00020238,2]
[314634753,1708481440179,-21516.29,0.00020238,2]
[314634754,1708481440190,-4801.41,0.00020238,2]
[314634755,1708481440199,-6077.94,0.00020238,2]
[314634756,1708481440209,-500.0,0.00020238,2]
[314634757,1708481440218,-500.0,0.00020238,2]
[314634758,1708481440228,-500.0,0.00020238,2]
[314634759,1708481440237,-4500.03,0.00020238,2]
[314634760,1708481440246,-500.0,0.00020238,2]
[314634761,1708481440255,-1090.22,0.00020238,2]
[314634762,1708481440264,-500.0,0.00020238,2]
[314634763,1708481440274,-906.94,0.00020238,2]
[314634764,1708481440283,-500.0,0.00020238,2]
[314634765,1708481440293,-5532.61,0.00020238,2]
[314634766,1708481440302,-500.0,0.00020238,2]
[314634767,1708481440311,-500.0,0.00020238,2]
[314634768,1708481440320,-289.88358592,0.00020239,2]
[314634769,1708481440330,-500.0,0.00020239,2]
[314634770,1708481440339,-500.0,0.00020239,2]
[314634771,1708481440350,-763.37,0.00020239,2]
[314634772,1708481440359,-500.0,0.00020239,2]
[314634773,1708481440369,-500.0,0.00020239,2]
[314634774,1708481440378,-500.0,0.00020239,2]
[314634775,1708481440388,-1724.92,0.00020239,2]
[314634776,1708481440397,-500.0,0.00020239,2]
[314634777,1708481440407,-500.0,0.00020239,2]
[314634778,1708481440416,-625.57,0.00020239,2]
[314634779,1708481440425,-592.37,0.00020239,2]
[314634780,1708481440435,-543.85678727,0.00020239,2]
[314634781,1708481440444,-500.0,0.00020239,2]
[314634782,1708481440454,-626.68,0.00020239,2]
[314634783,1708481440463,-500.0,0.00020239,2]
[314634784,1708481440472,-500.0,0.00020239,2]
[314634785,1708481440482,-205.30958413,0.00020239,2]
[314634786,1708481440492,-1556.43,0.00020239,2]
[314634787,1708481440501,-500.0,0.00020239,2]
[314634788,1708481440511,-500.0,0.00020239,2]
[314634789,1708481440521,-500.0,0.00020239,2]
[314634790,1708481440530,-609.03,0.00020239,2]
[314634791,1708481440540,-515.78063484,0.00020239,2]
[314634792,1708481440550,-500.0,0.00020239,2]
[314634793,1708481440559,-500.0,0.00020239,2]
[314634794,1708481440568,-500.0,0.00020239,2]
[314634795,1708481440577,-6169.98,0.00020239,2]
[314634796,1708481440586,-500.0,0.00020239,2]
[314634797,1708481440596,-531.33,0.00020239,2]
[314634798,1708481440605,-809.14,0.00020239,2]
[314634799,1708481440615,-1000.0,0.00020239,2]
[314634800,1708481440624,-500.0,0.00020239,2]
[314634801,1708481440633,-8466.04,0.00020239,2]
[314634802,1708481440642,-570.75979419,0.00020239,2]
[314634803,1708481440651,-500.0,0.00020239,2]
[314634804,1708481440660,-500.31121503,0.00020239,2]
[314634805,1708481440669,-500.0,0.00020239,2]
[314634806,1708481440678,-500.0,0.00020239,2]
[314634807,1708481440687,-500.0,0.00020239,2]
[314634808,1708481440696,-1226.78,0.00020239,2]
[314634810,1708481440705,-500.0,0.00020239,2]
[314634812,1708481440714,-500.0,0.00020239,2]
[314634813,1708481440724,-500.0,0.00020239,2]
[314634814,1708481440733,-500.0,0.00020239,2]
[314634815,1708481440746,-500.0,0.00020239,2]
[314634816,1708481440755,-625.4404582,0.00020239,2]
[314634818,1708481440764,-518.14198464,0.00020239,2]
[314634819,1708481440773,-21898.23,0.00020239,2]
[314634821,1708481440783,-500.0,0.00020239,2]
[314634822,1708481440793,-4228.48,0.00020239,2]
[314634823,1708481440802,-500.0,0.00020239,2]
[314634824,1708481440812,-500.0,0.00020239,2]
[314634825,1708481440822,-500.0,0.00020239,2]
[314634826,1708481440831,-500.0,0.00020239,2]
[314634827,1708481440840,-6273.19,0.00020239,2]
[314634828,1708481440851,-500.0,0.00020239,2]
[314634829,1708481440860,-3054.12,0.00020239,2]
[314634830,1708481440869,-608.01,0.00020239,2]
[314634831,1708481440879,-7043.96,0.00020239,2]
[314634832,1708481440888,-4356.77,0.00020239,2]
[314634833,1708481440896,-513.80847959,0.00020239,2]
[314634834,1708481440906,-500.0,0.00020239,2]
[314634835,1708481440915,-560.41708994,0.0002024,2]
[314634836,1708481440925,-500.0,0.0002024,2]
[314634837,1708481440935,-500.29127605,0.0002024,2]
[314634838,1708481440944,-576.8191444,0.0002024,2]
[314634839,1708481440953,-500.4023323,0.0002024,2]
[314634840,1708481440963,-500.0,0.0002024,2]
[314634841,1708481440973,-500.0,0.0002024,2]
[314634842,1708481440983,-500.0,0.0002024,2]
[314634843,1708481440993,-530.78,0.0002024,2]
[314634844,1708481441002,-500.0,0.0002024,2]
[314634845,1708481441011,-611.24,0.0002024,2]
[314634846,1708481441020,-500.0,0.0002024,2]
[314634847,1708481441029,-471.06527368,0.0002024,2]
[314634848,1708481441038,-500.0,0.0002024,2]
[314634849,1708481441047,-509.16243946,0.0002024,2]
[314634850,1708481441056,-500.73520097,0.0002024,2]
[314634851,1708481441065,-500.0,0.0002024,2]
[314634852,1708481441074,-500.75469173,0.0002024,2]
[314634853,1708481441084,-1195.36,0.0002024,2]
[314634854,1708481441094,-500.0,0.0002024,2]
[314634855,1708481441103,-500.1719501,0.0002024,2]
[314634856,1708481441112,-500.0,0.0002024,2]
[314634857,1708481441121,-500.0,0.0002024,2]
[314634858,1708481441131,-500.0,0.0002024,2]
[314634859,1708481441140,-500.44631674,0.0002024,2]
[314634860,1708481441149,-500.42857264,0.0002024,2]
[314634861,1708481441158,-1580.02,0.0002024,2]
[314634862,1708481441168,-500.0,0.0002024,2]
[314634863,1708481441177,-500.18055875,0.0002024,2]
[314634864,1708481441187,-664.57,0.0002024,2]
[314634865,1708481441196,-500.0,0.0002024,2]
[314634866,1708481441205,-500.0,0.0002024,2]
[314634867,1708481441214,-500.0,0.0002024,2]
[314634868,1708481441223,-500.0,0.0002024,2]
[314634869,1708481441233,-565.03,0.0002024,2]
[314634870,1708481441242,-500.0,0.0002024,2]
[314634871,1708481441251,-500.0,0.0002024,2]
[314634872,1708481441260,-500.0,0.0002024,2]
[314634873,1708481441270,-500.0,0.0002024,2]
[314634874,1708481441279,-500.0,0.0002024,2]
[314634875,1708481441289,-500.0,0.0002024,2]
[314634876,1708481441297,-500.0,0.0002024,2]
[314634877,1708481441307,-645.92,0.0002024,2]
[314634878,1708481441316,-500.0,0.0002024,2]
[314634879,1708481441325,-652.9,0.0002024,2]
[314634880,1708481441335,-500.0,0.0002024,2]
[314634881,1708481441344,-500.0,0.0002024,2]
[314634882,1708481441353,-404.94508815,0.0002024,2]
[314634883,1708481441362,-500.0,0.0002024,2]
[314634884,1708481441372,-500.0,0.0002024,2]
[314634885,1708481441381,-810.08,0.0002024,2]
[314634886,1708481441390,-500.0,0.0002024,2]
[314634887,1708481441399,-500.0,0.0002024,2]
[314634888,1708481441409,-500.0,0.0002024,2]
[314634889,1708481441418,-500.0,0.0002024,2]
[314634890,1708481441427,-500.45593904,0.0002024,2]
[314634891,1708481441437,-873.13,0.0002024,2]
[314634892,1708481441446,-500.0,0.0002024,2]
[314634893,1708481441455,-2317.74672454,0.0002024,2]
[314634911,1708481444601,-1757.3922582,0.00020131,3]
[314634912,1708481444615,-514.4477418,0.00020131,3]
[314634913,1708481444627,-500.0,0.0002014,2]
[314634914,1708481444639,-5776.71054339,0.00020238,2]
[314634923,1708481445425,-500.0,0.00020138,2]
[314634924,1708481445438,-614.70782231,0.0002014,2]
[314634925,1708481445449,-1840.10704715,0.00020238,2]
[314634926,1708481445462,-496.46240946,0.00020238,2]
[314634927,1708481445473,-500.38131138,0.00020239,2]
[314634928,1708481445484,-578.92327546,0.0002024,2]
[314634929,1708481445494,-451.46131347,0.0002024,2]
[314634931,1708481446497,-48.53868653,0.0002024,2]
[314634932,1708481446509,-430.75529147,0.0002024,2]
[314634949,1708481525495,266.1917178,0.00027397,120]
[314634953,1708481978715,3649.657964,0.0002,4]
[314634957,1708482235175,686.98513738,0.0002,2]
[314634958,1708482260341,158.62,0.0002,2]
[314635007,1708482619207,620.2060716,0.0002,2]
[314635015,1708482632676,-155.20797869,0.00020029,2]
[314635016,1708482632688,-155.20797869,0.0002003,2]
[314635017,1708482632698,-1297.56997938,0.00020034,2]
[314635018,1708482632709,-289.8929992,0.00020035,2]
[314635019,1708482632719,-184.01184976,0.00020035,2]
[314635020,1708482632730,-1055.37913969,0.0002004,2]
[314635021,1708482632742,-1555.97,0.00020124,3]
[314635022,1708482632752,-487.06,0.00020125,3]
[314635023,1708482632762,-1436.89,0.00020132,2]
[314635024,1708482632771,-34768.48,0.00020133,2]
[314635025,1708482632781,-500.0,0.00020133,2]
[314635027,1708482632791,-500.0,0.00020133,2]
[314635028,1708482632801,-500.0,0.00020133,2]
[314635030,1708482632811,-3098.15,0.00020134,2]
[314635031,1708482632821,-500.0,0.00020134,2]
[314635032,1708482632830,-1518.83,0.00020134,2]
[314635033,1708482632840,-5579.85,0.00020134,2]
[314635035,1708482632850,-21983.594484,0.00020134,2]
[314635037,1708482632862,-394.41643947,0.00020134,2]
[314635044,1708482638658,-500.0,0.00020132,2]
[314635045,1708482638668,-2969.06,0.00020133,2]
[314635046,1708482638678,-843.65361163,0.00020134,2]
[314635047,1708482638689,-1424.35157719,0.00020134,2]
[314635048,1708482638702,-6676.02643188,0.00020134,2]
[314635049,1708482638719,-10293.43745583,0.00020134,2]
[314635050,1708482638729,-820.57,0.00020134,2]
[314635052,1708482638740,-1931.4,0.00020134,2]
[314635054,1708482638750,-500.55193559,0.00020134,2]
[314635056,1708482638760,-1319.78,0.00020134,2]
[314635058,1708482638770,-500.0,0.00020134,2]
[314635060,1708482638779,-2140.08,0.00020134,2]
[314635062,1708482638789,-389.68956605,0.00020135,2]
[314635064,1708482638798,-500.0,0.00020135,2]
[314635067,1708482638815,-635.3,0.00020135,2]
[314635069,1708482638830,-500.0,0.00020135,2]
[314635072,1708482638845,-580.07835687,0.00020135,2]
[314635074,1708482638861,-500.0,0.00020135,2]
[314635077,1708482638875,-500.0,0.00020135,2]
[314635078,1708482638887,-500.0,0.00020135,2]
[314635079,1708482638901,-500.0,0.00020135,2]
[314635080,1708482638914,-500.0,0.00020135,2]
[314635081,1708482638928,-500.0,0.00020135,2]
[314635082,1708482638942,-394.16232225,0.00020135,2]
[314635083,1708482638956,-500.0,0.00020135,2]
[314635084,1708482638971,-500.0,0.00020135,2]
[314635085,1708482638988,-848.36,0.00020135,2]
[314635086,1708482639002,-500.48490715,0.00020135,2]
[314635087,1708482639012,-500.0,0.00020135,2]
[314635088,1708482639024,-500.189785,0.00020135,2]
[314635089,1708482639037,-870.4,0.00020135,2]
[314635090,1708482639049,-500.0,0.00020135,2]
[314635091,1708482639061,-500.0,0.00020135,2]
[314635092,1708482639075,-500.0,0.00020135,2]
[314635093,1708482639087,-500.0,0.00020135,2]
[314635094,1708482639101,-1349.87,0.00020135,2]
[314635095,1708482639113,-500.28450126,0.00020135,2]
[314635096,1708482639128,-2907.16,0.00020135,2]
[314635097,1708482639137,-500.0,0.00020135,2]
[314635098,1708482639152,-581.15,0.00020135,2]
[314635099,1708482639164,-500.48447121,0.00020135,2]
[314635100,1708482639177,-500.0,0.00020135,2]
[314635101,1708482639191,-500.27752377,0.00020135,2]
[314635102,1708482639205,-3214.52,0.00020135,2]
[314635103,1708482639218,-500.0,0.00020135,2]
[314635104,1708482639232,-500.0,0.00020135,2]
[314635105,1708482639243,-3538.25,0.00020135,2]
[314635106,1708482639256,-500.0,0.00020135,2]
[314635107,1708482639270,-558.08,0.00020135,2]
[314635108,1708482639282,-500.58076078,0.00020135,2]
[314635109,1708482639295,-4593.86,0.00020135,2]
[314635110,1708482639309,-500.0,0.00020135,2]
[314635111,1708482639323,-500.16171259,0.00020135,2]
[314635112,1708482639333,-500.0,0.00020135,2]
[314635113,1708482639343,-590.21,0.00020135,2]
[314635114,1708482639353,-500.0,0.00020135,2]
[314635115,1708482639364,-500.17211414,0.00020135,2]
[314635116,1708482639377,-500.0,0.00020135,2]
[314635117,1708482639388,-835.05,0.00020135,2]
[314635118,1708482639399,-390.16679798,0.00020135,2]
[314635234,1708482779640,24900.0,0.00019031,2]
[314635235,1708482817309,217.0311021,0.00019136,2]
[314635236,1708482914607,412.07345975,0.000189,2]
[314635237,1708483008280,1737.6179986,0.00019134,2]
[314635244,1708483515982,274.71563983,0.000189,2]
[314635259,1708483711125,5000.0,0.0003,120]
[314635270,1708483817052,10000.0,0.0002,10]
[314635278,1708483831642,7106.76,0.0002,10]
[314635365,1708483841061,-155.20953287,0.00020022,2]
[314635366,1708483841071,-1571.99,0.0002012,3]
[314635367,1708483841080,-2454.4,0.0002012,3]
[314635368,1708483841089,-14235.38611267,0.00020129,2]
[314635382,1708483845968,-20618.21388733,0.00020129,2]
[314635383,1708483845980,-500.0,0.00020129,2]
[314635384,1708483845989,-500.0,0.00020129,2]
[314635385,1708483845998,-592.78,0.00020129,2]
[314635386,1708483846007,-500.0,0.00020129,2]
[314635387,1708483846017,-1377.02,0.00020129,2]
[314635388,1708483846026,-608.83,0.0002013,2]
[314635389,1708483846035,-500.0,0.0002013,2]
[314635390,1708483846045,-500.0,0.0002013,2]
[314635391,1708483846054,-592.18366439,0.0002013,2]
[314635392,1708483846064,-500.53523058,0.0002013,2]
[314635393,1708483846073,-500.0,0.0002013,2]
[314635394,1708483846083,-409.46097493,0.0002013,2]
[314635395,1708483846092,-1367.27,0.0002013,2]
[314635396,1708483846101,-586.83,0.0002013,2]
[314635397,1708483846111,-500.0,0.0002013,2]
[314635398,1708483846120,-500.0,0.0002013,2]
[314635399,1708483846129,-500.0,0.0002013,2]
[314635400,1708483846139,-834.14,0.0002013,2]
[314635401,1708483846149,-399.53422995,0.0002013,2]
[314635402,1708483846158,-501.35189179,0.0002013,2]
[314635403,1708483846167,-500.0,0.0002013,2]
[314635404,1708483846176,-500.0,0.0002013,2]
[314635405,1708483846185,-500.0,0.0002013,2]
[314635406,1708483846194,-500.0,0.0002013,2]
[314635407,1708483846203,-173.39803652,0.0002013,2]
[314635424,1708484015047,16872.1130006,0.00019132,2]
[314635432,1708484117356,637.89785006,0.000189,2]
[314635434,1708484155069,57231.66252603,0.00019926,2]
[314635444,1708484179063,38154.44168402,0.00019926,2]
[314635445,1708484195058,6848.49365638,0.00019926,2]
[314635769,1708484718646,728.43462682,0.000189,2]
[314635875,1708484929048,24900.0,0.00019031,2]
[314635878,1708485002175,1396.84184735,0.00019022,2]
[314635929,1708485032200,-789.0372344,0.00019122,2]
[314635931,1708485032210,-227.066744,0.00019122,2]
[314635933,1708485032220,-24946.87441363,0.00019926,2]
[314635935,1708485032231,-620.01030358,0.0001995,2]
[314635937,1708485032242,-2045.33,0.00020115,3]
[314635939,1708485032252,-1704.44,0.00020115,3]
[314635940,1708485032261,-1006.03894291,0.00020124,2]
[314635941,1708485032271,-33401.37,0.00020124,2]
[314635942,1708485032281,-500.0,0.00020124,2]
[314635943,1708485032290,-200.0,0.00020124,2]
[314635944,1708485032300,-500.0,0.00020124,2]
[314635945,1708485032310,-1319.64,0.00020124,2]
[314635946,1708485032320,-2820.65,0.00020124,2]
[314635948,1708485032330,-500.0,0.00020124,2]
[314635950,1708485032340,-1455.55,0.00020125,2]
[314635952,1708485032350,-5347.36,0.00020125,2]
[314635954,1708485032360,-500.0,0.00020125,2]
[314635956,1708485032370,-1850.92,0.00020125,2]
[314635958,1708485032380,-488.81064989,0.00020125,2]
[314635960,1708485032389,-12357.73804466,0.00020125,2]
[314635963,1708485032402,-1343.38926574,0.00020125,2]
[314635965,1708485032420,-16717.31649073,0.00020125,2]
[314636149,1708485319631,730.24621296,0.000189,2]
[314636152,1708485921108,649.91289425,0.000189,2]
[314636155,1708485969374,24900.0,0.0001907,2]
[314636173,1708486095082,163.88804211,0.00019078,2]
[314636244,1708486232423,-524.79095275,0.00019177,2]
[314636246,1708486232433,-173.6428396,0.00019178,2]
[314636248,1708486232442,-801.04940525,0.0002,2]
[314636250,1708486232451,-210.51744095,0.0002002,2]
[314636252,1708486232460,-300.0,0.00020027,2]
[314636254,1708486232470,-11062.97476006,0.00020028,2]
[314636256,1708486232479,-210.51744093,0.00020089,2]
[314636258,1708486232488,-1420.37,0.0002011,3]
[314636260,1708486232497,-1183.64,0.0002011,3]
[314636262,1708486232506,-1294.42166765,0.0002011,3]
[314636264,1708486232515,-1034.46149927,0.00020119,3]
[314636266,1708486232524,-2853.76,0.0002012,2]
[314636268,1708486232533,-500.0,0.0002012,2]
[314636270,1708486232542,-1394.9,0.0002012,2]
[314636272,1708486232551,-5124.55,0.0002012,2]
[314636274,1708486232560,-33645.28,0.0002012,2]
[314636276,1708486232570,-921.40271447,0.0002012,2]
[314636557,1708486238153,-977.33472553,0.0002012,2]
[314636558,1708486238209,-2721.57664766,0.0002012,2]
[314636642,1708486471310,18551.2565624,0.00019013,2]
[314636643,1708486522356,433.27526283,0.000189,2]
[314636644,1708487123595,288.85017522,0.000189,2]
[314637141,1708487438386,-1297.56997938,0.00019166,2]
[314637142,1708487438397,-524.79095275,0.00019167,2]
[314637143,1708487438406,-169.559049,0.00019178,2]
[314637144,1708487438415,-160.3117234,0.00019356,2]
[314637145,1708487438424,-1590.19065373,0.00019562,2]
[314637146,1708487438433,-1034.46149927,0.00019578,3]
[314637147,1708487438442,-620.00051518,0.00019901,2]
[314637148,1708487438451,-155.20953287,0.0002,2]
[314637149,1708487438460,-182.10068337,0.00020015,2]
[314637150,1708487438469,-157.88808072,0.00020016,2]
[314637151,1708487438479,-9691.76307252,0.00020022,2]
[314637152,1708487438488,-20308.19333703,0.0002008,2]
[314637269,1708487725711,192.56678348,0.000189,2]
[314637273,1708488058915,24900.0,0.00019018,2]
[314637275,1708488162739,595.0,0.0003,120]
[314637276,1708488242131,-1297.56997938,0.0001911,2]
[314637277,1708488242154,-169.559049,0.00019178,2]
[314637337,1708488632679,-159.75479002,0.0001992,2]
[314637339,1708488632689,-157.88808069,0.0001992,2]
[314637341,1708488632698,-229.89138118,0.00020009,2]
[314637343,1708488632711,-1369.90526459,0.00020009,2]
[314637344,1708488632721,-951.12,0.0002001,3]
[314637346,1708488632733,-905.38,0.0002001,3]
[314637348,1708488632746,-2477.08279112,0.00020018,2]
[314637350,1708488632756,-1369.38642074,0.00020019,2]
[314637352,1708488632766,-13688.21673115,0.00020019,2]
[314637486,1708488638547,-1196.70773582,0.00020019,2]
[314637528,1708488641808,-465.19676197,0.0002001,3]
[314637530,1708488644571,-289.28323803,0.0002001,3]
[314637531,1708488644580,-155.20953287,0.00020018,2]
[314637532,1708488644590,-188.10370009,0.00020019,2]
[314637533,1708488644601,-444.97209498,0.00020019,2]
[314637534,1708488644638,-167.23408039,0.00020019,2]
[314637583,1708488824749,183.68435589,0.0003,120]
[314637584,1708488973624,13199.8157489,0.00018936,2]
[314637600,1708489286176,45333.05522272,0.00019,2]
[314637601,1708489286212,45826.58579177,0.00019,2]
[314637613,1708489690646,10000.0,0.0003,120]
[314637614,1708489711099,10000.0,0.0003,120]
[314637615,1708489724827,1566.99417539,0.00021088,14]
[314637701,1708489839309,-213.08781164,0.00019753,2]
[314637702,1708489839322,-410.43218836,0.00019754,2]
[314637717,1708489841106,-589.56781164,0.00019754,2]
[314637718,1708489841115,-1000.0,0.00019768,2]
[314637719,1708489841125,-1000.0,0.00019773,2]
[314637720,1708489841134,-1000.0,0.00019774,2]
[314637721,1708489841143,-480.86602491,0.00019784,2]
[314637722,1708489841153,-1000.0,0.00019801,2]
[314637724,1708489841163,-203.60036,0.00019819,2]
[314637726,1708489841172,-1000.0,0.0001982,2]
[314637728,1708489841182,-1000.0,0.00019828,2]
[314637730,1708489841191,-1000.0,0.00019851,2]
[314637732,1708489841200,-1000.0,0.00019851,2]
[314637734,1708489841210,-620.00002575,0.00019851,2]
[314637736,1708489841219,-1000.0,0.00019859,2]
[314637738,1708489841229,-1000.0,0.00019859,2]
[314637740,1708489841238,-1000.0,0.00019863,2]
[314637742,1708489841249,-798.44850095,0.00019864,2]
[314637858,1708489842831,-201.55149905,0.00019864,2]
[314637860,1708489842841,-1000.0,0.00019868,2]
[314637861,1708489842850,-1000.0,0.00019868,2]
[314637862,1708489842859,-796.40063669,0.00019869,2]
[314637870,1708490106544,24900.0,0.00018902,2]
[314637873,1708490327889,177.82123,0.00018908,2]
[314637896,1708490710319,21778.4168742,0.00018913,2]
[314637899,1708490732528,657.98594677,0.000189,2]
[314638026,1708491037961,-213.08781164,0.00019816,2]
[314638027,1708491037972,-157.88808069,0.00019817,2]
[314638028,1708491037981,-203.59936331,0.00019869,2]
[314638029,1708491037991,-672.89,0.00019906,3]
[314638030,1708491038000,-628.74,0.00019906,3]
[314638031,1708491038009,-523.95,0.00019906,3]
[314638032,1708491038018,-820.39,0.00019906,3]
[314638033,1708491038027,-679.93,0.00019906,3]
[314638034,1708491038036,-858.58,0.00019906,3]
[314638035,1708491038046,-46498.80666297,0.00019908,2]
[314638036,1708491038055,-6496.72360384,0.00019909,2]
[314638037,1708491038065,-200.13352367,0.00019914,2]
[314638039,1708491038074,-31589.85,0.00019915,2]
[314638041,1708491038083,-500.0,0.00019915,2]
[314638042,1708491038092,-500.0,0.00019915,2]
[314638043,1708491038102,-500.0,0.00019915,2]
[314638044,1708491038112,-1389.02,0.00019915,2]
[314638045,1708491038122,-500.0,0.00019916,2]
[314638046,1708491038131,-1331.13,0.00019916,2]
[314638047,1708491038141,-607.48231245,0.00019916,2]
[314638048,1708491038151,-500.0,0.00019916,2]
[314638049,1708491038160,-586.52,0.00019916,2]
[314638050,1708491038170,-500.0,0.00019916,2]
[314638051,1708491038181,-396.36419202,0.00019916,2]
[314638052,1708491038190,-2734.86,0.00019916,2]
[314638053,1708491038201,-500.0,0.00019916,2]
[314638054,1708491038210,-500.0,0.00019916,2]
[314638055,1708491038220,-500.0,0.00019916,2]
[314638056,1708491038230,-500.3721384,0.00019916,2]
[314638057,1708491038239,-500.0,0.00019916,2]
[314638058,1708491038249,-500.0,0.00019916,2]
[314638059,1708491038258,-500.0,0.00019916,2]
[314638060,1708491038267,-1336.78,0.00019916,2]
[314638061,1708491038462,-4911.03,0.00019916,2]
[314638062,1708491038473,-1254.38,0.00019916,2]
[314638063,1708491038482,-500.0,0.00019916,2]
[314638064,1708491038491,-576.17,0.00019916,2]
[314638065,1708491038501,-38421.56,0.00019916,2]
[314638066,1708491038510,-500.0,0.00019916,2]
[314638067,1708491038519,-518.44,0.00019916,2]
[314638068,1708491038529,-500.0,0.00019916,2]
[314638069,1708491038538,-500.0,0.00019916,2]
[314638070,1708491038547,-2385.72,0.00019916,2]
[314638071,1708491038556,-157.586656,0.00019916,2]
[314638072,1708491038565,-157.586656,0.00019916,2]
[314638073,1708491038575,-157.586656,0.00019916,2]
[314638074,1708491038584,-151.255822,0.00019916,2]